fUST/lending_fUST_20240117
["ID","MTS","AMOUNT","RATE_DAILY","PERIOD"]
[311925202,1705503033253,-154.93802479,0.0002,2]
[311925203,1705503033264,-677.90931289,0.0002,2]
[311925204,1705503033276,-2995.12470388,0.0002,2]
[311925205,1705503033289,-154.93802479,0.00020492,2]
[311925206,1705503033300,-237.84642437,0.00020493,2]
[311925208,1705503033314,-1196.71363385,0.00020493,2]
[311925210,1705503033327,-2723.41558203,0.00020502,2]
[311925212,1705503033341,-200.0,0.00020533,2]
[311925214,1705503033352,-3484.99657002,0.00021,2]
[311925216,1705503033363,-500.0,0.000211,2]
[311925218,1705503033375,-153.0,0.00021178,2]
[311925220,1705503033385,-327.18048,0.00021577,2]
[311925221,1705503033397,-306.0,0.00021578,2]
[311925223,1705503033410,-13035.23,0.00021895,3]
[311925225,1705503033423,-10862.69,0.00021895,3]
[311925227,1705503033434,-15137.69,0.00021905,3]
[311925229,1705503033449,-15642.28,0.00021905,3]
[311925231,1705503033460,-191.16884209,0.00021915,2]
[311925232,1705503033471,-261.99076107,0.00021915,2]
[311925234,1705503033482,-178.67391792,0.00021915,2]
[311925236,1705503033493,-323.12147464,0.00021915,2]
[311925238,1705503033505,-7993.35951483,0.00021915,2]
[311925240,1705503033518,-245.54833172,0.00021916,2]
[311925242,1705503033529,-500.0,0.00021917,2]
[311925244,1705503033540,-500.0,0.00021917,2]
[311925245,1705503033552,-500.0,0.00021917,2]
[311925247,1705503033563,-164.71281458,0.00021917,2]
[311925249,1705503033573,-500.0,0.00021917,2]
[311925251,1705503033584,-506.04070361,0.00021917,2]
[311925253,1705503033594,-500.0,0.00021917,2]
[311925255,1705503033604,-500.0,0.00021917,2]
[311925257,1705503033615,-500.0,0.00021917,2]
[311925259,1705503033626,-500.0,0.00021917,2]
[311925261,1705503033636,-500.0,0.00021917,2]
[311925263,1705503033646,-502.96184779,0.00021917,2]
[311925265,1705503033656,-500.0,0.00021917,2]
[311925267,1705503033666,-501.21701358,0.00021917,2]
[311925269,1705503033676,-518.39614064,0.00021917,2]
[311925271,1705503033685,-500.0,0.00021917,2]
[311925272,1705503033697,-500.0,0.00021917,2]
[311925274,1705503033706,-500.0,0.00021917,2]
[311925276,1705503033716,-500.0,0.00021917,2]
[311925278,1705503033726,-500.0,0.00021917,2]
[311925280,1705503033735,-500.0,0.00021917,2]
[311925281,1705503033745,-500.0,0.00021917,2]
[311925283,1705503033756,-426.88797914,0.00021917,2]
[311925285,1705503033765,-500.0,0.00021917,2]
[311925287,1705503033776,-500.0,0.00021917,2]
[311925289,1705503033785,-500.0,0.00021917,2]
[311925291,1705503033796,-500.0,0.00021917,2]
[311925293,1705503033807,-500.0,0.00021917,2]
[311925295,1705503033817,-500.0,0.00021917,2]
[311925296,1705503033827,-1000.0,0.00021917,2]
[311925298,1705503033837,-500.0,0.00021917,2]
[311925300,1705503033847,-500.0,0.00021917,2]
[311925302,1705503033857,-500.0,0.00021917,2]
[311925304,1705503033867,-500.0,0.00021917,2]
[311925306,1705503033877,-500.0,0.00021917,2]
[311925308,1705503033887,-500.0,0.00021917,2]
[311925310,1705503033897,-500.0,0.00021917,2]
[311925312,1705503033906,-500.0,0.00021917,2]
[311925314,1705503033916,-260.42248279,0.00021917,2]
[311925316,1705503033931,-239.57751721,0.00021917,2]
[311925318,1705503033940,-257.53,0.00021917,2]
[311925320,1705503033952,-500.0,0.00021917,2]
[311925322,1705503033962,-500.0,0.00021917,2]
[311925324,1705503033972,-500.0,0.00021917,2]
[311925325,1705503033981,-500.0,0.00021917,2]
[311925327,1705503033990,-500.0,0.00021917,2]
[311925329,1705503033999,-500.0,0.00021917,2]
[311925331,1705503034009,-503.79040743,0.00021917,2]
[311925332,1705503034019,-500.0,0.00021917,2]
[311925334,1705503034029,-500.0,0.00021917,2]
[311925336,1705503034039,-500.0,0.00021917,2]
[311925338,1705503034048,-500.0,0.00021917,2]
[311925340,1705503034057,-500.0,0.00021917,2]
[311925342,1705503034067,-500.0,0.00021917,2]
[311925344,1705503034076,-500.0,0.00021917,2]
[311925345,1705503034085,-569.61165838,0.00021917,2]
[311925347,1705503034095,-954.63,0.00021917,2]
[311925349,1705503034104,-500.0,0.00021917,2]
[311925351,1705503034113,-500.0,0.00021917,2]
[311925353,1705503034124,-500.0,0.00021917,2]
[311925355,1705503034134,-500.0,0.00021917,2]
[311925357,1705503034144,-500.0,0.00021917,2]
[311925359,1705503034153,-500.0,0.00021917,2]
[311925361,1705503034162,-500.0,0.00021917,2]
[311925362,1705503034172,-500.0,0.00021917,2]
[311925364,1705503034181,-500.0,0.00021917,2]
[311925366,1705503034190,-500.0,0.00021917,2]
[311925368,1705503034202,-500.0,0.00021917,2]
[311925370,1705503034211,-500.0,0.00021917,2]
[311925372,1705503034220,-500.0,0.00021917,2]
[311925374,1705503034230,-500.0,0.00021917,2]
[311925376,1705503034239,-500.0,0.00021917,2]
[311925377,1705503034249,-500.0,0.00021917,2]
[311925378,1705503034258,-500.0,0.00021917,2]
[311925379,1705503034268,-500.0,0.00021917,2]
[311925380,1705503034278,-500.0,0.00021917,2]
[311925381,1705503034287,-500.0,0.00021917,2]
[311925382,1705503034296,-500.0,0.00021917,2]
[311925383,1705503034306,-493.1083161,0.00021917,2]
[311925384,1705503034315,-500.0,0.00021917,2]
[311925385,1705503034405,-1877.91,0.00021917,2]
[311925386,1705503034415,-1312.18,0.00021917,2]
[311925387,1705503034426,-500.0,0.00021917,2]
[311925388,1705503034437,-500.0,0.00021917,2]
[311925389,1705503034448,-501.14569971,0.00021917,2]
[311925390,1705503034457,-500.0,0.00021917,2]
[311925391,1705503034467,-500.0,0.00021917,2]
[311925392,1705503034477,-500.0,0.00021917,2]
[311925393,1705503034486,-500.0,0.00021917,2]
[311925394,1705503034496,-500.0,0.00021917,2]
[311925395,1705503034506,-532.97085441,0.00021917,2]
[311925396,1705503034516,-2687.87,0.00021917,2]
[311925397,1705503034526,-502.14501577,0.00021917,2]
[311925398,1705503034535,-503.73641132,0.00021917,2]
[311925399,1705503034544,-500.0,0.00021917,2]
[311925400,1705503034553,-500.0,0.00021917,2]
[311925401,1705503034563,-500.0,0.00021917,2]
[311925402,1705503034573,-497.37968749,0.00021917,2]
[311925403,1705503034582,-254.97616014,0.00021917,2]
[311925404,1705503034591,-500.0,0.00021917,2]
[311925405,1705503034600,-500.0,0.00021917,2]
[311925406,1705503034610,-451.30321561,0.00021917,2]
[311925407,1705503034620,-500.0,0.00021917,2]
[311925408,1705503034629,-500.0,0.00021917,2]
[311925409,1705503034639,-500.80858493,0.00021917,2]
[311925410,1705503034649,-500.0,0.00021917,2]
[311925411,1705503034659,-500.0,0.00021917,2]
[311925412,1705503034669,-221.17429449,0.00021917,2]
[311925413,1705503034679,-500.0,0.00021917,2]
[311925414,1705503034690,-501.70956628,0.00021917,2]
[311925415,1705503034702,-500.0,0.00021917,2]
[311925416,1705503034712,-680.64,0.00021917,2]
[311925417,1705503034721,-500.0,0.00021917,2]
[311925418,1705503034731,-500.0,0.00021917,2]
[311925419,1705503034742,-222.24610265,0.00021917,2]
[311925420,1705503034751,-314.44072528,0.00021917,2]
[311925421,1705503034761,-500.0,0.00021917,2]
[311925422,1705503034770,-500.0,0.00021917,2]
[311925423,1705503034779,-500.0,0.00021917,2]
[311925424,1705503034789,-607.72,0.00021917,2]
[311925425,1705503034798,-252.51760587,0.00021917,2]
[311925426,1705503034808,-500.0,0.00021917,2]
[311925427,1705503034818,-500.0,0.00021917,2]
[311925428,1705503034827,-474.31978255,0.00021917,2]
[311925429,1705503034836,-783.61839105,0.00021917,5]
[311925430,1705503034846,-635.39,0.00021917,2]
[311925431,1705503034855,-500.0,0.00021917,2]
[311925432,1705503034864,-500.0,0.00021917,2]
[311925433,1705503034874,-501.79,0.00021917,2]
[311925434,1705503034883,-500.0,0.00021917,2]
[311925435,1705503034892,-500.0,0.00021917,2]
[311925436,1705503034901,-500.0,0.00021917,2]
[311925437,1705503034911,-370.94611879,0.00021917,2]
[311925458,1705503038658,-130.02034245,0.00021917,2]
[311925460,1705503038668,-1023.43,0.00021917,2]
[311925461,1705503038677,-500.0,0.00021917,2]
[311925463,1705503038686,-505.95267522,0.00021917,2]
[311925464,1705503038698,-500.0,0.00021917,2]
[311925465,1705503038707,-500.0,0.00021917,2]
[311925466,1705503038717,-619.44326316,0.00021917,2]
[311925467,1705503038726,-500.0,0.00021917,2]
[311925468,1705503038735,-500.0,0.00021917,2]
[311925469,1705503038744,-500.0,0.00021917,2]
[311925470,1705503038752,-500.0,0.00021917,2]
[311925471,1705503038762,-1152.63,0.00021917,2]
[311925472,1705503038772,-500.0,0.00021917,2]
[311925473,1705503038781,-500.0,0.00021917,2]
[311925474,1705503038791,-500.0,0.00021917,2]
[311925475,1705503038799,-500.0,0.00021917,2]
[311925476,1705503038808,-501.47332198,0.00021917,2]
[311925477,1705503038817,-500.0,0.00021917,2]
[311925478,1705503038826,-500.0,0.00021917,2]
[311925479,1705503038836,-500.0,0.00021917,2]
[311925480,1705503038844,-500.0,0.00021917,2]
[311925481,1705503038853,-743.7,0.00021917,2]
[311925482,1705503038862,-665.32,0.00021917,2]
[311925483,1705503038872,-500.0,0.00021917,2]
[311925484,1705503038882,-500.0,0.00021917,2]
[311925485,1705503038891,-500.90966369,0.00021917,2]
[311925486,1705503038912,-500.0,0.00021917,2]
[311925487,1705503038923,-500.0,0.00021917,2]
[311925488,1705503038934,-500.0,0.00021917,2]
[311925489,1705503038943,-523.84467898,0.00021917,2]
[311925490,1705503038955,-429.64655054,0.00021917,2]
[311925491,1705503038965,-500.0,0.00021917,2]
[311925492,1705503038975,-500.0,0.00021917,2]
[311925493,1705503038985,-500.0,0.00021917,2]
[311925494,1705503038995,-500.0,0.00021917,2]
[311925495,1705503039005,-500.0,0.00021917,2]
[311925496,1705503039015,-500.0,0.00021917,2]
[311925497,1705503039024,-500.0,0.00021917,2]
[311925498,1705503039034,-200.0,0.00021917,2]
[311925499,1705503039043,-500.0,0.00021917,2]
[311925500,1705503039053,-500.0,0.00021917,2]
[311925501,1705503039063,-500.0,0.00021917,2]
[311925502,1705503039074,-500.0,0.00021917,2]
[311925503,1705503039084,-501.95209961,0.00021917,2]
[311925504,1705503039094,-500.0,0.00021917,2]
[311925505,1705503039103,-5838.9,0.00021917,2]
[311925506,1705503039113,-500.0,0.00021917,2]
[311925507,1705503039124,-500.0,0.00021917,2]
[311925508,1705503039134,-500.0,0.00021917,2]
[311925509,1705503039143,-500.0,0.00021917,2]
[311925510,1705503039153,-500.0,0.00021917,2]
[311925511,1705503039162,-1156.53,0.00021917,2]
[311925512,1705503039172,-500.0,0.00021917,2]
[311925513,1705503039182,-500.0,0.00021917,2]
[311925514,1705503039192,-500.0,0.00021917,2]
[311925515,1705503039204,-502.1951578,0.00021917,2]
[311925516,1705503039213,-500.0,0.00021917,2]
[311925517,1705503039222,-500.0,0.00021917,2]
[311925518,1705503039231,-500.0,0.00021917,2]
[311925519,1705503039242,-500.0,0.00021917,2]
[311925520,1705503039251,-500.0,0.00021917,2]
[311925521,1705503039261,-500.0,0.00021917,2]
[311925522,1705503039370,-669.55,0.00021917,2]
[311925523,1705503039379,-500.0,0.00021917,2]
[311925524,1705503039392,-500.0,0.00021917,2]
[311925525,1705503039401,-500.0,0.00021917,2]
[311925526,1705503039410,-500.0,0.00021917,2]
[311925527,1705503039420,-500.0,0.00021917,2]
[311925528,1705503039431,-500.0,0.00021917,2]
[311925529,1705503039440,-522.0123093,0.00021917,2]
[311925530,1705503039450,-1936.02,0.00021917,2]
[311925531,1705503039460,-1521.01,0.00021917,2]
[311925532,1705503039470,-732.4,0.00021917,2]
[311925533,1705503039479,-621.67,0.00021917,2]
[311925534,1705503039488,-500.0,0.00021917,2]
[311925535,1705503039497,-500.0,0.00021917,2]
[311925536,1705503039507,-500.0,0.00021917,2]
[311925537,1705503039516,-598.60148851,0.00021917,2]
[311925538,1705503039525,-1457.2,0.00021917,2]
[311925539,1705503039535,-500.0,0.00021917,2]
[311925540,1705503039545,-2477.86,0.00021917,2]
[311925541,1705503039554,-13786.79,0.00021917,2]
[311925542,1705503039563,-741.27,0.00021917,2]
[311925543,1705503039572,-500.0,0.00021917,2]
[311925544,1705503039582,-179.25954201,0.00021917,2]
[311925545,1705503039591,-500.0,0.00021917,2]
[311925546,1705503039600,-500.0,0.00021917,2]
[311925547,1705503039609,-500.0,0.00021917,2]
[311925548,1705503039619,-500.0,0.00021917,2]
[311925549,1705503039628,-500.0,0.00021917,2]
[311925550,1705503039638,-500.0,0.00021917,2]
[311925551,1705503039648,-500.0,0.00021917,2]
[311925552,1705503039657,-500.0,0.00021917,2]
[311925553,1705503039665,-500.0,0.00021917,2]
[311925554,1705503039675,-500.0,0.00021917,2]
[311925555,1705503039684,-1159.85,0.00021917,2]
[311925556,1705503039694,-282.50659396,0.00021917,2]
[311925557,1705503039705,-500.0,0.00021917,2]
[311925558,1705503039714,-601.97581751,0.00021917,2]
[311925560,1705503039723,-1629.75,0.00021917,2]
[311925561,1705503039732,-500.0,0.00021917,2]
[311925562,1705503039741,-500.0,0.00021917,2]
[311925563,1705503039751,-500.0,0.00021917,2]
[311925564,1705503039760,-500.0,0.00021917,2]
[311925566,1705503039769,-500.0,0.00021917,2]
[311925567,1705503039778,-13665.75,0.00021917,2]
[311925568,1705503039787,-500.0,0.00021917,2]
[311925569,1705503039797,-500.0,0.00021917,2]
[311925570,1705503039806,-750.12,0.00021917,2]
[311925571,1705503039815,-2164.07,0.00021917,2]
[311925572,1705503039824,-500.0,0.00021917,2]
[311925573,1705503039833,-519.27138741,0.00021917,2]
[311925576,1705503039842,-500.0,0.00021917,2]
[311925578,1705503039851,-500.0,0.00021917,2]
[311925579,1705503039860,-1397.08,0.00021917,2]
[311925581,1705503039869,-500.0,0.00021917,2]
[311925583,1705503039878,-677.52,0.00021917,2]
[311925585,1705503039887,-587.98,0.00021917,2]
[311925587,1705503039896,-500.0,0.00021917,2]
[311925589,1705503039904,-500.0,0.00021917,2]
[311925591,1705503039913,-5345.94,0.00021917,2]
[311925592,1705503039922,-6594.35,0.00021917,2]
[311925593,1705503039931,-500.0,0.00021917,2]
[311925594,1705503039940,-23673.1,0.00021917,2]
[311925595,1705503039950,-500.0,0.00021917,2]
[311925596,1705503039960,-500.0,0.00021917,2]
[311925598,1705503039969,-2454.85,0.00021917,2]
[311925600,1705503039977,-7925.49,0.00021917,2]
[311925601,1705503039986,-500.0,0.00021917,2]
[311925603,1705503039995,-500.0,0.00021917,2]
[311925605,1705503040005,-500.0,0.00021917,2]
[311925607,1705503040014,-2548.48,0.00021917,2]
[311925608,1705503040023,-500.0,0.00021917,2]
[311925610,1705503040032,-500.0,0.00021917,2]
[311925612,1705503040041,-500.0,0.00021917,2]
[311925613,1705503040050,-500.0,0.00021917,2]
[311925614,1705503040059,-500.0,0.00021917,2]
[311925615,1705503040068,-166.666666,0.00021918,2]
[311925616,1705503040077,-153.0,0.00021918,2]
[311925617,1705503040085,-153.0,0.00021918,2]
[311925619,1705503040095,-153.0,0.00021918,2]
[311925620,1705503040104,-401.0129254,0.00021918,2]
[311925622,1705503040113,-153.0,0.00021918,2]
[311925623,1705503040122,-306.5245184,0.00021918,2]
[311925624,1705503040131,-306.0000001,0.00021918,2]
[311925625,1705503040140,-433.5559996,0.00021918,2]
[311925626,1705503040149,-306.0,0.00021918,2]
[311925627,1705503040158,-198.957615,0.00021918,2]
[311925628,1705503040167,-153.0,0.00021918,2]
[311925629,1705503040176,-153.0,0.00021918,2]
[311925630,1705503040186,-153.0,0.00021918,2]
[311925631,1705503040195,-306.0,0.00021918,2]
[311925632,1705503040206,-153.0,0.00021918,2]
[311925633,1705503040214,-159.3796813,0.00021918,2]
[311925634,1705503040223,-153.0,0.00021918,2]
[311925635,1705503040232,-153.0,0.00021918,2]
[311925636,1705503040241,-153.0,0.00021918,2]
[311925637,1705503040249,-153.0,0.00021918,2]
[311925638,1705503040258,-153.0,0.00021918,2]
[311925639,1705503040268,-500.0,0.00021942,2]
[311925640,1705503040277,-500.0,0.00021953,2]
[311925641,1705503040289,-500.0,0.00021965,2]
[311925642,1705503040298,-5000.0,0.00021971,2]
[311925643,1705503040307,-69197.91451126,0.00021971,2]
[311925644,1705503040317,-5000.0,0.00021971,2]
[311925645,1705503040326,-11865.55209204,0.00021971,2]
[311925646,1705503040337,-5000.0,0.00021971,2]
[311925647,1705503040347,-4161.69687506,0.00021971,2]
[311925648,1705503040356,-10242.34882594,0.00021971,2]
[311925649,1705503040365,-500.0,0.00021974,2]
[311925650,1705503040375,-500.0,0.00021974,2]
[311925651,1705503040389,-500.0,0.00021974,2]
[311925652,1705503040399,-5499.99999103,0.00022,2]
[311925653,1705503040408,-293.1976279,0.00022,4]
[311925654,1705503040418,-3955.54830897,0.00022,2]
[311925655,1705503040428,-425.53656097,0.00022,2]
[311925656,1705503040437,-153.0,0.00022,2]
[311925657,1705503040448,-153.0,0.00022,2]
[311925658,1705503040457,-154.9690062,0.0002205,2]
[311925659,1705503040467,-155.19121382,0.0002205,2]
[311925660,1705503040476,-690.5951713,0.00022052,2]
[311925661,1705503040485,-155.56443103,0.00022052,2]
[311925662,1705503040494,-157.77559155,0.00022052,2]
[311925663,1705503040504,-644.16920761,0.00022052,2]
[311925664,1705503040513,-296.58305175,0.00022052,2]
[311925665,1705503040523,-8284.04462013,0.00022052,2]
[311925666,1705503040532,-7173.93965199,0.00022052,2]
[311925667,1705503040542,-337.55229462,0.00022052,2]
[311925668,1705503040551,-14470.37794941,0.00022053,2]
[311925669,1705503040561,-1255.8233818,0.00022053,2]
[311925670,1705503040571,-330.6015298,0.00022054,2]
[311925671,1705503040580,-638.48739459,0.00022054,2]
[311925672,1705503040589,-500.0,0.00022054,2]
[311925673,1705503040599,-500.0,0.00022054,2]
[311925674,1705503040609,-500.0,0.00022054,2]
[311925675,1705503040618,-500.0,0.00022054,2]
[311925676,1705503040627,-500.0,0.00022054,2]
[311925677,1705503040637,-500.0,0.00022054,2]
[311925678,1705503040646,-500.0,0.00022054,2]
[311925679,1705503040655,-508.74722001,0.00022054,2]
[311925680,1705503040664,-500.0,0.00022054,2]
[311925683,1705503040739,-500.0,0.00022054,2]
[311925684,1705503040748,-500.0,0.00022054,2]
[311925685,1705503040758,-1000.0,0.00022054,2]
[311925686,1705503040767,-500.0,0.00022054,2]
[311925687,1705503040776,-500.0,0.00022054,2]
[311925688,1705503040786,-500.0,0.00022054,2]
[311925689,1705503040795,-500.0,0.00022054,2]
[311925690,1705503040804,-500.0,0.00022054,2]
[311925691,1705503040813,-327.43482098,0.00022054,2]
[311925692,1705503040822,-500.0,0.00022054,2]
[311925693,1705503040832,-954.63,0.00022054,2]
[311925694,1705503040842,-500.0,0.00022054,2]
[311925695,1705503040851,-500.0,0.00022054,2]
[311925696,1705503040860,-500.0,0.00022054,2]
[311925697,1705503040870,-500.0,0.00022054,2]
[311925698,1705503040879,-500.0,0.00022054,2]
[311925699,1705503040888,-500.0,0.00022054,2]
[311925700,1705503040897,-500.0,0.00022054,2]
[311925701,1705503040907,-500.0,0.00022054,2]
[311925702,1705503040916,-500.0,0.00022054,2]
[311925703,1705503040926,-1877.91,0.00022054,2]
[311925704,1705503040935,-1312.18,0.00022054,2]
[311925705,1705503040945,-500.0,0.00022054,2]
[311925706,1705503040956,-500.0,0.00022054,2]
[311925707,1705503040966,-500.0,0.00022054,2]
[311925708,1705503040975,-500.0,0.00022054,2]
[311925709,1705503040985,-2687.87,0.00022054,2]
[311925710,1705503040994,-500.0,0.00022054,2]
[311925711,1705503041003,-500.0,0.00022054,2]
[311925712,1705503041013,-680.64,0.00022054,2]
[311925713,1705503041022,-500.0,0.00022054,2]
[311925714,1705503041032,-500.0,0.00022054,2]
[311925715,1705503041041,-500.0,0.00022054,2]
[311925716,1705503041050,-607.72,0.00022054,2]
[311925717,1705503041059,-500.0,0.00022054,2]
[311925718,1705503041069,-635.39,0.00022054,2]
[311925719,1705503041077,-608.64434299,0.00022054,2]
[311925720,1705503041086,-501.79,0.00022054,2]
[311925721,1705503041096,-500.0,0.00022054,2]
[311925722,1705503041106,-500.0,0.00022054,2]
[311925723,1705503041115,-1023.43,0.00022054,2]
[311925724,1705503041125,-500.0,0.00022054,2]
[311925725,1705503041134,-500.0,0.00022054,2]
[311925726,1705503041143,-500.0,0.00022054,2]
[311925727,1705503041153,-500.0,0.00022054,2]
[311925728,1705503041162,-500.0,0.00022054,2]
[311925729,1705503041172,-500.0,0.00022054,2]
[311925730,1705503041181,-500.0,0.00022054,2]
[311925731,1705503041191,-1152.63,0.00022054,2]
[311925732,1705503041202,-258.35703301,0.00022054,2]
[311925733,1705503041212,-575.28227044,0.00022054,2]
[311925734,1705503041221,-500.0,0.00022054,2]
[311925735,1705503041231,-500.0,0.00022054,2]
[311925736,1705503041240,-743.7,0.00022054,2]
[311925737,1705503041250,-665.32,0.00022054,2]
[311925738,1705503041259,-500.0,0.00022054,2]
[311925739,1705503041268,-500.0,0.00022054,2]
[311925740,1705503041277,-500.0,0.00022054,2]
[311925741,1705503041286,-500.0,0.00022054,2]
[311925742,1705503041296,-500.0,0.00022054,2]
[311925743,1705503041305,-500.0,0.00022054,2]
[311925744,1705503041315,-500.0,0.00022054,2]
[311925745,1705503041324,-619.60676546,0.00022054,2]
[311925746,1705503041336,-500.0,0.00022054,2]
[311925747,1705503041346,-500.0,0.00022054,2]
[311925748,1705503041355,-500.0,0.00022054,2]
[311925749,1705503041364,-500.0,0.00022054,2]
[311925750,1705503041374,-5838.9,0.00022054,2]
[311925751,1705503041388,-500.0,0.00022054,2]
[311925752,1705503041398,-500.0,0.00022054,2]
[311925753,1705503041407,-500.0,0.00022054,2]
[311925754,1705503041417,-508.66142748,0.00022054,2]
[311925755,1705503041426,-1156.53,0.00022054,2]
[311925756,1705503041436,-500.0,0.00022054,2]
[311925757,1705503041445,-500.0,0.00022054,2]
[311925758,1705503041456,-502.57805441,0.00022054,2]
[311925759,1705503041466,-500.0,0.00022054,2]
[311925760,1705503041476,-500.0,0.00022054,2]
[311925761,1705503041485,-669.55,0.00022054,2]
[311925762,1705503041495,-500.0,0.00022054,2]
[311925763,1705503041504,-500.0,0.00022054,2]
[311925764,1705503041514,-500.0,0.00022054,2]
[311925765,1705503041523,-500.0,0.00022054,2]
[311925766,1705503041533,-500.0,0.00022054,2]
[311925767,1705503041543,-1936.02,0.00022054,2]
[311925768,1705503041552,-1521.01,0.00022054,2]
[311925769,1705503041562,-732.4,0.00022054,2]
[311925770,1705503041572,-621.67,0.00022054,2]
[311925771,1705503041581,-500.0,0.00022054,2]
[311925772,1705503041590,-500.0,0.00022054,2]
[311925773,1705503041599,-500.0,0.00022054,2]
[311925774,1705503041609,-1457.2,0.00022054,2]
[311925775,1705503041618,-500.0,0.00022054,2]
[311925776,1705503041628,-2477.86,0.00022054,2]
[311925777,1705503041638,-13786.79,0.00022054,2]
[311925778,1705503041648,-741.27,0.00022054,2]
[311925779,1705503041657,-500.0,0.00022054,2]
[311925780,1705503041667,-500.0,0.00022054,2]
[311925781,1705503041676,-500.0,0.00022054,2]
[311925782,1705503041686,-500.0,0.00022054,2]
[311925783,1705503041696,-500.0,0.00022054,2]
[311925784,1705503041710,-500.0,0.00022054,2]
[311925785,1705503041720,-500.0,0.00022054,2]
[311925786,1705503041730,-500.0,0.00022054,2]
[311925787,1705503041740,-500.0,0.00022054,2]
[311925788,1705503041751,-500.0,0.00022054,2]
[311925789,1705503041761,-1159.85,0.00022054,2]
[311925790,1705503041772,-374.69803746,0.00022054,2]
[311925791,1705503041782,-1629.75,0.00022054,2]
[311925792,1705503041793,-500.0,0.00022054,2]
[311925793,1705503041803,-500.0,0.00022054,2]
[311925794,1705503041815,-500.0,0.00022054,2]
[311925795,1705503041825,-515.61152056,0.00022054,2]
[311925796,1705503041836,-500.0,0.00022054,2]
[311925797,1705503041847,-13665.75,0.00022054,2]
[311925798,1705503041858,-500.0,0.00022054,2]
[311925799,1705503041869,-506.24435026,0.00022054,2]
[311925800,1705503041879,-750.12,0.00022054,2]
[311925801,1705503041889,-2164.07,0.00022054,2]
[311925802,1705503041900,-500.0,0.00022054,2]
[311925803,1705503041910,-500.0,0.00022054,2]
[311925804,1705503041921,-500.0,0.00022054,2]
[311925805,1705503041932,-1397.08,0.00022054,2]
[311925806,1705503041944,-500.0,0.00022054,2]
[311925807,1705503041958,-677.52,0.00022054,2]
[311925808,1705503041968,-587.98,0.00022054,2]
[311925809,1705503041977,-500.0,0.00022054,2]
[311925810,1705503042054,-500.0,0.00022054,2]
[311925811,1705503042065,-5345.94,0.00022054,2]
[311925812,1705503042075,-6594.35,0.00022054,2]
[311925813,1705503042086,-646.32186224,0.00022054,2]
[311925814,1705503042096,-23673.1,0.00022054,2]
[311925815,1705503042107,-500.0,0.00022054,2]
[311925816,1705503042118,-500.0,0.00022054,2]
[311925817,1705503042129,-2454.85,0.00022054,2]
[311925818,1705503042139,-7925.49,0.00022054,2]
[311925819,1705503042150,-500.0,0.00022054,2]
[311925820,1705503042161,-500.0,0.00022054,2]
[311925821,1705503042172,-500.0,0.00022054,2]
[311925822,1705503042183,-2548.48,0.00022054,2]
[311925823,1705503042194,-500.0,0.00022054,2]
[311925824,1705503042206,-500.0,0.00022054,2]
[311925825,1705503042217,-500.0,0.00022054,2]